fUST/lending_fUST_20250708
["ID","MTS","AMOUNT","RATE_DAILY","PERIOD"]
[370180975,1751909448211,-151.0,0.00022465,7]
[370180977,1751909448223,-151.0,0.00022465,7]
[370180979,1751909448235,-460.0,0.00022465,2]
[370180981,1751909448251,-151.0,0.00022465,7]
[370180983,1751909448271,-151.0,0.00022465,7]
[370180985,1751909448281,-151.0,0.00022465,7]
[370180987,1751909448291,-151.0,0.00022465,7]
[370180989,1751909448300,-151.0,0.00022465,7]
[370180991,1751909448310,-151.0,0.00022465,7]
[370180993,1751909448319,-151.0,0.00022465,7]
[370180995,1751909448328,-730.18,0.00022465,2]
[370180997,1751909448338,-460.0,0.00022465,2]
[370180999,1751909448348,-1038.05,0.00022465,2]
[370181001,1751909448358,-649.65,0.00022465,2]
[370181003,1751909448367,-151.0,0.00022465,7]
[370181005,1751909448377,-617.68,0.00022465,2]
[370181007,1751909448386,-460.0,0.00022465,2]
[370181009,1751909448396,-757.37,0.00022465,2]
[370181011,1751909448405,-639.94,0.00022465,2]
[370181013,1751909448415,-248.990984,0.00022465,7]
[370181015,1751909448425,-248.990984,0.00022465,7]
[370181017,1751909448434,-690.75,0.00022465,2]
[370181019,1751909448444,-487.94599192,0.00022465,2]
[370181021,1751909448455,-460.0,0.00022465,2]
[370181023,1751909448466,-666.45,0.00022465,2]
[370181025,1751909448477,-151.0,0.00022465,7]
[370181027,1751909448486,-1337.48,0.00022465,2]
[370181029,1751909448497,-4110.19,0.00022465,2]
[370181031,1751909448507,-1474.12,0.00022465,2]
[370181033,1751909448516,-460.0,0.00022465,2]
[370181035,1751909448525,-941.23,0.00022465,2]
[370181037,1751909448535,-1566.42,0.00022465,2]
[370181039,1751909448544,-460.0,0.00022465,2]
[370181041,1751909448554,-460.0,0.00022465,2]
[370181043,1751909448563,-684.49,0.00022465,2]
[370181045,1751909448573,-500.0,0.00022469,10]
[370181047,1751909448582,-500.0,0.00022469,10]
[370181049,1751909448592,-151.0,0.0002247,7]
[370181051,1751909448604,-151.0,0.0002247,7]
[370181053,1751909448614,-151.0,0.0002247,7]
[370181055,1751909448627,-151.0,0.0002247,7]
[370181057,1751909448638,-151.0,0.0002247,7]
[370181059,1751909448648,-167.163414,0.0002247,7]
[370181061,1751909448657,-167.163414,0.0002247,7]
[370181063,1751909448668,-151.0,0.0002247,7]
[370181065,1751909448683,-151.0,0.0002247,7]
[370181067,1751909448693,-524.98484073,0.0002247,10]
[370181069,1751909448702,-214.06929976,0.0002247,7]
[370181071,1751909448712,-75219.96,0.0002247,2]
[370181073,1751909448722,-150.0,0.00022473,2]
[370181075,1751909448731,-500.0,0.00022473,2]
[370181077,1751909448741,-151.0,0.00022473,7]
[370181079,1751909448750,-151.0,0.00022473,7]
[370181081,1751909448759,-429.60078,0.00022473,7]
[370181083,1751909448770,-429.60078,0.00022473,7]
[370181085,1751909448779,-220.0,0.00022483,2]
[370181087,1751909448789,-220.0,0.00022486,2]
[370181089,1751909448798,-500.0,0.00022489,10]
[370181091,1751909448808,-500.0,0.00022489,10]
[370181093,1751909448817,-151.0,0.00022489,7]
[370181095,1751909448827,-151.0,0.00022489,7]
[370181097,1751909448837,-48745.76970532,0.0002249,7]
[370181129,1751909449144,-151.0,0.00019178,2]
[370181131,1751909449154,-151.0,0.00019205,2]
[370181133,1751909449164,-151.0,0.00019233,2]
[370181135,1751909449173,-245.0,0.0001926,2]
[370181137,1751909449182,-553.29,0.00020581,2]
[370181139,1751909449192,-429.128,0.00020581,2]
[370181141,1751909449203,-779.09,0.00022465,2]
[370181143,1751909449212,-51580.492,0.0002249,7]
[370184176,1751909490763,200.0,0.00025552,120]
[370184177,1751909550772,200.0,0.0002605,120]
[370184178,1751909610780,200.0,0.00024922,120]
[370184179,1751909670833,200.0,0.00024224,120]
[370184183,1751909730938,200.0,0.00026564,120]
[370184184,1751909790866,200.0,0.00026518,120]
[370184185,1751909850766,200.0,0.0002456,120]
[370184186,1751909910730,200.0,0.00025752,120]
[370184188,1751909970818,200.0,0.00026587,120]
[370184190,1751910030755,200.0,0.00024302,120]
[370184191,1751910034882,2000.0,0.0001838,120]
[370184192,1751910090734,200.0,0.00026588,120]
[370184193,1751910210757,200.0,0.00025262,120]
[370184194,1751910271030,200.0,0.00025588,120]
[370184196,1751910331272,200.0,0.00024291,120]
[370184197,1751910355304,-392.79242804,0.00019078,2]
[370184198,1751910355326,-678.0,0.00019165,2]
[370184199,1751910355349,-207.4,0.00019166,2]
[370184200,1751910355369,-151.0,0.00019166,2]
[370184201,1751910355390,-151.0,0.00019166,2]
[370184202,1751910355411,-151.0,0.00019166,2]
[370184203,1751910355433,-151.0,0.00019166,2]
[370184204,1751910355454,-125.1692841,0.00019166,2]
[370184206,1751910450744,200.0,0.00024175,120]
[370184208,1751910510762,200.0,0.00024923,120]
[370184212,1751910571243,200.0,0.00026075,120]
[370184213,1751910630763,200.0,0.00024741,120]
[370184223,1751910632253,-207.4,0.00019166,2]
[370184225,1751910632263,-176.8307159,0.00019166,2]
[370184227,1751910632273,-151.0,0.00019166,2]
[370184229,1751910632282,-151.0,0.00019166,2]
[370184231,1751910632291,-500.0,0.00019177,2]
[370184233,1751910632301,-500.0,0.00019177,2]
[370184235,1751910632311,-205.94263009,0.00019177,2]
[370184237,1751910632319,-500.0,0.00019177,2]
[370184239,1751910632328,-460.0,0.00019178,2]
[370184241,1751910632339,-460.0,0.00019178,2]
[370184242,1751910632349,-426.69654395,0.00019178,2]
[370184280,1751910638347,-33.30345605,0.00019178,2]
[370184282,1751910638357,-318.29069595,0.00019178,2]
[370184284,1751910638369,-141.70930405,0.00019178,2]
[370184286,1751910638379,-309.69983773,0.00019178,2]
[370184569,1751910641560,340.42943,0.00027397,120]
[370186696,1751910663759,2105.0,0.00025154,60]
[370186737,1751910664220,2106.0,0.00025154,60]
[370186778,1751910664669,2105.0,0.00025154,60]
[370186826,1751910665142,2105.0,0.00025154,60]
[370186881,1751910665673,2105.0,0.00025154,60]
[370187003,1751910666971,550.0,0.00025154,60]
[370189314,1751910690917,200.0,0.00024229,120]
[370189365,1751910750545,200.0,0.00025716,120]
[370189366,1751910810743,200.0,0.00025264,120]
[370189367,1751910816047,192.06317993,0.00025172,120]
[370189368,1751910818687,188.1493034,0.00025172,120]
[370189369,1751910821294,171.52536177,0.00025172,120]
[370189371,1751910835566,300.0,0.00027397,120]
[370189372,1751910850945,1000.0,0.00027,120]
[370189373,1751910852417,1000.0,0.00027,120]
[370189374,1751910854094,1000.0,0.00027,120]
[370189375,1751910855357,1000.0,0.00027,120]
[370189376,1751910856370,1000.0,0.00027,120]
[370189377,1751910869602,300.0,0.00027397,120]
[370189378,1751910871358,200.0,0.00024045,120]
[370189379,1751910871387,300.0,0.00027397,120]
[370189380,1751910892924,300.0,0.00027397,120]
[370189381,1751911051009,200.0,0.00026418,120]
[370189382,1751911110854,200.0,0.00027085,120]
[370189383,1751911171221,200.0,0.00024431,120]
[370189384,1751911230790,200.0,0.00024245,120]
[370189385,1751911291203,200.0,0.00026654,120]
[370189386,1751911410830,200.0,0.00024689,120]
[370189388,1751911532400,200.0,0.00024099,120]
[370189389,1751911541589,-290.9347641,0.00018189,2]
[370189390,1751911541611,-316.0,0.00019165,2]
[370189391,1751911541634,-300.0,0.00019172,2]
[370189392,1751911541657,-267.0,0.00019172,2]
[370189393,1751911541679,-300.0,0.00019172,2]
[370189394,1751911541698,-500.0,0.00019173,2]
[370189395,1751911541719,-364.30768066,0.00019173,2]
[370189396,1751911555092,-136.82190386,0.00019173,2]
[370189397,1751911555115,-500.0,0.00019173,2]
[370189398,1751911555136,-500.0,0.00019173,2]
[370189399,1751911555159,-225.33479425,0.00019177,2]
[370189400,1751911590754,200.0,0.00025963,120]
[370189401,1751911602092,-153.25722855,0.00019078,2]
[370189403,1751911641046,255.322072,0.00027397,120]
[370189404,1751911710755,200.0,0.0002689,120]
[370189408,1751911770733,200.0,0.00027103,120]
[370189411,1751911832497,-165.55707408,0.00018698,9]
[370189412,1751911832507,-274.66520575,0.00019177,2]
[370189413,1751911832517,-194.15984106,0.00019177,2]
[370189414,1751911832527,-500.0,0.00019177,2]
[370189415,1751911832536,-300.0,0.00019177,2]
[370189416,1751911832547,-909.15805907,0.00019178,2]
[370189417,1751911832560,-2690.72342214,0.00019178,2]
[370189418,1751911832570,-1003.94600564,0.00019178,2]
[370189419,1751911832582,-11856.45949469,0.00019178,2]
[370189420,1751911832599,-674.32055963,0.00019178,2]
[370189421,1751911832609,-460.0,0.00019178,2]
[370189423,1751911832620,-460.0,0.00019178,2]
[370189425,1751911832630,-460.0,0.00019178,2]
[370189426,1751911832641,-460.0,0.00019178,2]
[370189429,1751911832651,-494.76,0.00019178,2]
[370189432,1751911832661,-460.0,0.00019178,2]
[370189434,1751911832671,-460.0,0.00019178,2]
[370189436,1751911832681,-460.0,0.00019178,2]
[370189438,1751911832691,-460.0,0.00019178,2]
[370189440,1751911832700,-460.0,0.00019178,2]
[370189442,1751911832709,-460.0,0.00019178,2]
[370189443,1751911832719,-579.61002683,0.00019178,2]
[370189445,1751911832728,-460.0,0.00019178,2]
[370189447,1751911832737,-460.0,0.00019178,2]
[370189449,1751911832747,-438.46889079,0.00019178,2]
[370189452,1751911832759,-21.53110921,0.00019178,2]
[370189454,1751911832768,-216.55759289,0.00019178,2]
[370189456,1751911832777,-188.0912979,0.00019178,2]
[370189462,1751911832829,200.0,0.00027103,120]
[370189974,1751911838535,-271.9087021,0.00019178,2]
[370189975,1751911838545,-79.4575859,0.00019178,2]
[370189976,1751911838557,-1799.78876743,0.00019178,2]
[370189977,1751911838566,-460.0,0.00019178,2]
[370189978,1751911838576,-460.0,0.00019178,2]
[370189979,1751911838586,-460.0,0.00019178,2]
[370189981,1751911838595,-460.0,0.00019178,2]
[370189983,1751911838604,-460.0,0.00019178,2]
[370189984,1751911838614,-460.0,0.00019178,2]
[370189985,1751911838623,-460.0,0.00019178,2]
[370189986,1751911838635,-460.0,0.00019178,2]
[370189987,1751911838645,-460.0,0.00019178,2]
[370189988,1751911838655,-460.0,0.00019178,2]
[370189989,1751911838664,-460.0,0.00019178,2]
[370189990,1751911838674,-460.0,0.00019178,2]
[370189991,1751911838683,-460.0,0.00019178,2]
[370189992,1751911838693,-504.11084752,0.00019178,2]
[370189993,1751911838702,-460.0,0.00019178,2]
[370189994,1751911838713,-460.0,0.00019178,2]
[370189995,1751911838723,-460.0,0.00019178,2]
[370189996,1751911838733,-460.0,0.00019178,2]
[370189997,1751911838743,-460.0,0.00019178,2]
[370189998,1751911838752,-460.0,0.00019178,2]
[370189999,1751911838762,-460.0,0.00019178,2]
[370190000,1751911838772,-460.0,0.00019178,2]
[370190001,1751911838781,-48.0350441,0.00019178,2]
[370190002,1751911838793,-411.9649559,0.00019178,2]
[370190003,1751911838802,-460.0,0.00019178,2]
[370190004,1751911838812,-460.0,0.00019178,2]
[370190005,1751911838821,-460.0,0.00019178,2]
[370190006,1751911838831,-460.0,0.00019178,2]
[370190007,1751911838840,-460.0,0.00019178,2]
[370190008,1751911838849,-460.0,0.00019178,2]
[370190009,1751911838859,-460.0,0.00019178,2]
[370190010,1751911838869,-460.0,0.00019178,2]
[370190011,1751911838878,-460.0,0.00019178,2]
[370190012,1751911838892,-460.0,0.00019178,2]
[370190013,1751911838901,-460.0,0.00019178,2]
[370190014,1751911838911,-460.0,0.00019178,2]
[370190015,1751911838920,-460.0,0.00019178,2]
[370190016,1751911838930,-460.0,0.00019178,2]
[370190017,1751911838939,-460.0,0.00019178,2]
[370190018,1751911838949,-460.0,0.00019178,2]
[370190019,1751911838958,-460.0,0.00019178,2]
[370190020,1751911838969,-460.0,0.00019178,2]
[370190021,1751911838979,-460.0,0.00019178,2]
[370190022,1751911838988,-162.0999321,0.00019178,2]
[370190023,1751911839000,-297.9000679,0.00019178,2]
[370190024,1751911839009,-460.0,0.00019178,2]
[370190025,1751911839019,-460.0,0.00019178,2]
[370190026,1751911839029,-460.0,0.00019178,2]
[370190027,1751911839038,-460.0,0.00019178,2]
[370190028,1751911839047,-460.0,0.00019178,2]
[370190029,1751911839056,-450.37,0.00019178,2]
[370190031,1751911839065,-460.0,0.00019178,2]
[370190033,1751911839074,-460.0,0.00019178,2]
[370190035,1751911839084,-460.0,0.00019178,2]
[370190037,1751911839093,-460.0,0.00019178,2]
[370190039,1751911839102,-460.0,0.00019178,2]
[370190041,1751911839112,-460.0,0.00019178,2]
[370190043,1751911839122,-460.0,0.00019178,2]
[370190044,1751911839131,-460.0,0.00019178,2]
[370190046,1751911839140,-460.0,0.00019178,2]
[370190048,1751911839150,-460.0,0.00019178,2]
[370190050,1751911839160,-460.0,0.00019178,2]
[370190052,1751911839169,-460.0,0.00019178,2]
[370190054,1751911839179,-460.0,0.00019178,2]
[370190055,1751911839188,-460.0,0.00019178,2]
[370190057,1751911839198,-460.0,0.00019178,2]
[370190059,1751911839207,-307.76879,0.00019178,2]
[370190061,1751911839216,-460.0,0.00019178,2]
[370190062,1751911839226,-460.0,0.00019178,2]
[370190064,1751911839235,-460.0,0.00019178,2]
[370190066,1751911839245,-389.9911421,0.00019178,2]
[370190068,1751911839257,-70.0088579,0.00019178,2]
[370190070,1751911839267,-460.0,0.00019178,2]
[370190072,1751911839276,-979.24,0.00019178,2]
[370190074,1751911839286,-1937.98,0.00019178,2]
[370190076,1751911839296,-460.0,0.00019178,2]
[370190078,1751911839305,-460.0,0.00019178,2]
[370190080,1751911839315,-1279.33,0.00019178,2]
[370190082,1751911839324,-460.0,0.00019178,2]
[370190084,1751911839333,-460.0,0.00019178,2]
[370190086,1751911839342,-460.0,0.00019178,2]
[370190088,1751911839351,-460.0,0.00019178,2]
[370190090,1751911839361,-485.3,0.00019178,2]
[370190092,1751911839370,-460.0,0.00019178,2]
[370190094,1751911839381,-460.0,0.00019178,2]
[370190096,1751911839391,-212.57087571,0.00019178,2]
[370190098,1751911839401,-460.0,0.00019178,2]
[370190100,1751911839414,-372.82655283,0.00019178,2]
[370190102,1751911839424,-460.0,0.00019178,2]
[370190104,1751911839435,-460.0,0.00019178,2]
[370190106,1751911839445,-460.0,0.00019178,2]
[370190108,1751911839456,-738.21,0.00019178,2]
[370190110,1751911839465,-620.63090453,0.00019178,2]
[370190112,1751911839475,-460.0,0.00019178,2]
[370190114,1751911839485,-460.0,0.00019178,2]
[370190116,1751911839494,-3068.15,0.00019178,2]
[370190118,1751911839504,-460.0,0.00019178,2]
[370190120,1751911839513,-460.0,0.00019178,2]
[370190122,1751911839524,-463.59,0.00019178,2]
[370190124,1751911839534,-337.0922826,0.00019178,2]
[370190126,1751911839543,-500.0,0.00019178,2]
[370190128,1751911839553,-460.0,0.00019178,2]
[370190130,1751911839562,-460.0,0.00019178,2]
[370190132,1751911839572,-460.0,0.00019178,2]
[370190134,1751911839582,-460.0,0.00019178,2]
[370190136,1751911839591,-460.0,0.00019178,2]
[370190138,1751911839601,-460.0,0.00019178,2]
[370190140,1751911839610,-460.0,0.00019178,2]
[370190142,1751911839620,-460.0,0.00019178,2]
[370190144,1751911839629,-460.0,0.00019178,2]
[370190146,1751911839638,-460.0,0.00019178,2]
[370190148,1751911839647,-460.0,0.00019178,2]
[370190150,1751911839657,-460.0,0.00019178,2]
[370190152,1751911839666,-460.0,0.00019178,2]
[370190154,1751911839675,-787.89,0.00019178,2]
[370190156,1751911839684,-460.0,0.00019178,2]
[370190158,1751911839693,-460.0,0.00019178,2]
[370190160,1751911839703,-460.0,0.00019178,2]
[370190162,1751911839712,-460.0,0.00019178,2]
[370190164,1751911839722,-727.17,0.00019178,2]
[370190166,1751911839731,-460.0,0.00019178,2]
[370190168,1751911839740,-460.0,0.00019178,2]
[370190170,1751911839749,-460.0,0.00019178,2]
[370190172,1751911839759,-460.0,0.00019178,2]
[370190174,1751911839768,-460.0,0.00019178,2]
[370190176,1751911839777,-460.0,0.00019178,2]
[370190178,1751911839786,-460.0,0.00019178,2]
[370190180,1751911839795,-460.0,0.00019178,2]
[370190182,1751911839805,-460.0,0.00019178,2]
[370190184,1751911839814,-942.1,0.00019178,2]
[370190186,1751911839824,-460.0,0.00019178,2]
[370190188,1751911839833,-460.0,0.00019178,2]
[370190190,1751911839842,-460.0,0.00019178,2]
[370190192,1751911839851,-460.0,0.00019178,2]
[370190194,1751911839861,-808.84,0.00019178,2]
[370190196,1751911839872,-460.0,0.00019178,2]
[370190198,1751911839881,-460.0,0.00019178,2]
[370190200,1751911839891,-460.0,0.00019178,2]
[370190202,1751911839899,-460.0,0.00019178,2]
[370190204,1751911839909,-460.0,0.00019178,2]
[370190206,1751911839918,-460.0,0.00019178,2]
[370190208,1751911839927,-460.0,0.00019178,2]
[370190210,1751911839937,-460.0,0.00019178,2]
[370190212,1751911839946,-460.0,0.00019178,2]
[370190213,1751911839956,-460.0,0.00019178,2]
[370190215,1751911839965,-460.0,0.00019178,2]
[370190217,1751911839975,-460.0,0.00019178,2]
[370190219,1751911839984,-460.0,0.00019178,2]
[370190221,1751911839994,-167.66,0.00019178,2]
[370190223,1751911840003,-460.0,0.00019178,2]
[370190225,1751911840013,-460.0,0.00019178,2]
[370190227,1751911840022,-460.0,0.00019178,2]
[370190229,1751911840032,-460.0,0.00019178,2]
[370190231,1751911840041,-460.0,0.00019178,2]
[370190233,1751911840051,-460.0,0.00019178,2]
[370190236,1751911840060,-460.0,0.00019178,2]
[370190238,1751911840070,-460.0,0.00019178,2]
[370190240,1751911840079,-460.0,0.00019178,2]
[370190242,1751911840088,-460.0,0.00019178,2]
[370190245,1751911840097,-500.81,0.00019178,2]
[370190248,1751911840106,-968.03,0.00019178,2]
[370190251,1751911840116,-460.0,0.00019178,2]
[370190255,1751911840125,-460.0,0.00019178,2]
[370190256,1751911840135,-460.0,0.00019178,2]
[370190259,1751911840144,-460.0,0.00019178,2]
[370190262,1751911840154,-460.0,0.00019178,2]
[370190265,1751911840163,-460.0,0.00019178,2]
[370190268,1751911840173,-460.0,0.00019178,2]
[370190271,1751911840182,-460.0,0.00019178,2]
[370190274,1751911840191,-1573.06,0.00019178,2]
[370190279,1751911840202,-460.0,0.00019178,2]
[370190282,1751911840212,-460.0,0.00019178,2]
[370190285,1751911840222,-460.0,0.00019178,2]
[370190287,1751911840232,-460.0,0.00019178,2]
[370190290,1751911840242,-460.0,0.00019178,2]
[370190292,1751911840251,-460.0,0.00019178,2]
[370190295,1751911840261,-460.0,0.00019178,2]
[370190298,1751911840271,-4110.19,0.00019178,2]
[370190301,1751911840281,-460.0,0.00019178,2]
[370190304,1751911840291,-460.0,0.00019178,2]
[370190307,1751911840301,-460.0,0.00019178,2]
[370190310,1751911840310,-460.0,0.00019178,2]
[370190313,1751911840319,-460.0,0.00019178,2]
[370190316,1751911840328,-460.0,0.00019178,2]
[370190319,1751911840338,-460.0,0.00019178,2]
[370190322,1751911840347,-460.0,0.00019178,2]
[370190325,1751911840356,-460.0,0.00019178,2]
[370190328,1751911840365,-460.0,0.00019178,2]
[370190331,1751911840375,-284.73578399,0.00019178,2]
[370190334,1751911840384,-1273.58,0.00019178,2]
[370190336,1751911840393,-460.0,0.00019178,2]
[370190339,1751911840402,-460.0,0.00019178,2]
[370190342,1751911840415,-460.0,0.00019178,2]
[370190345,1751911840425,-460.0,0.00019178,2]
[370190348,1751911840435,-829.97,0.00019178,2]
[370190351,1751911840445,-460.0,0.00019178,2]
[370190354,1751911840455,-460.0,0.00019178,2]
[370190357,1751911840465,-460.0,0.00019178,2]
[370190360,1751911840474,-460.0,0.00019178,2]
[370190363,1751911840484,-460.0,0.00019178,2]
[370190366,1751911840493,-958.9,0.00019178,2]
[370190369,1751911840503,-983.75,0.00019178,2]
[370190372,1751911840512,-500.0,0.00019178,2]
[370190375,1751911840521,-500.0,0.00019178,2]
[370190377,1751911840530,-500.0,0.00019178,2]
[370190380,1751911840540,-500.0,0.00019178,2]
[370190383,1751911840549,-500.0,0.00019178,2]
[370190386,1751911840559,-500.0,0.00019178,2]
[370190388,1751911840568,-666.0,0.00019178,2]
[370190391,1751911840578,-187.97924,0.00019178,2]
[370190394,1751911840587,-5000.0,0.00019178,2]
[370190397,1751911840597,-5000.0,0.00019178,2]
[370190401,1751911840607,-5000.0,0.00019178,2]
[370190404,1751911840617,-151.0,0.0001926,2]
[370190407,1751911840627,-500.0,0.0001926,2]
[370190410,1751911840639,-151.0,0.0001926,2]
[370190413,1751911840648,-500.0,0.00019287,2]
[370190416,1751911840658,-500.0,0.00019315,2]
[370190419,1751911840668,-500.0,0.00019342,2]
[370190422,1751911840676,-500.0,0.00019342,2]
[370190425,1751911840686,-405.17189163,0.00019342,2]
[370190428,1751911840696,-500.0,0.00019369,2]
[370190431,1751911840705,-500.0,0.00019369,2]
[370190434,1751911840714,-500.0,0.00019397,2]
[370190437,1751911840724,-500.0,0.00019397,2]
[370190440,1751911840733,-500.0,0.00019424,2]
[370190443,1751911840743,-500.0,0.00019424,2]
[370190445,1751911840752,-813.27,0.00019442,3]
[370190448,1751911840761,-406.64,0.00019442,3]
[370190451,1751911840770,-203.32,0.00019442,3]
[370190454,1751911840779,-609.98,0.00019442,3]
[370190457,1751911840789,-155.0,0.00019451,2]
[370190460,1751911840799,-500.0,0.00019451,2]
[370190462,1751911840808,-500.0,0.00019451,2]
[370190466,1751911840817,-500.0,0.00019451,2]
[370190469,1751911840827,-500.0,0.00019452,2]
[370190472,1751911840836,-500.0,0.00019452,2]
[370190474,1751911840846,-573.07617826,0.00019452,2]
[370190476,1751911840855,-460.0,0.00019452,2]
[370190478,1751911840864,-460.0,0.00019452,2]
[370190479,1751911840873,-460.0,0.00019452,2]
[370190481,1751911840884,-460.0,0.00019452,2]
[370190483,1751911840893,-460.0,0.00019452,2]
[370190485,1751911840902,-331.11951018,0.00019452,2]
[370190488,1751911840911,-460.0,0.00019452,2]
[370190491,1751911840923,-165.2,0.00019452,2]
[370190493,1751911840932,-460.0,0.00019452,2]
[370190495,1751911840941,-460.0,0.00019452,2]
[370190497,1751911840951,-460.0,0.00019452,2]
[370190499,1751911840959,-460.0,0.00019452,2]
[370190502,1751911840968,-460.0,0.00019452,2]
[370190505,1751911840978,-460.0,0.00019452,2]
[370190508,1751911840987,-460.0,0.00019452,2]
[370190511,1751911840996,-460.0,0.00019452,2]
[370190514,1751911841007,-460.0,0.00019452,2]
[370190517,1751911841016,-460.0,0.00019452,2]
[370190520,1751911841025,-493.21712756,0.00019452,2]
[370190523,1751911841034,-460.0,0.00019452,2]
[370190526,1751911841045,-460.0,0.00019452,2]
[370190530,1751911841054,-460.0,0.00019452,2]
[370190533,1751911841063,-460.0,0.00019452,2]
[370190536,1751911841072,-460.0,0.00019452,2]
[370190539,1751911841081,-460.0,0.00019452,2]
[370190542,1751911841090,-460.0,0.00019452,2]
[370190544,1751911841099,-460.0,0.00019452,2]
[370190547,1751911841108,-460.0,0.00019452,2]
[370190550,1751911841118,-460.0,0.00019452,2]
[370190580,1751911841126,-460.0,0.00019452,2]
[370190584,1751911841268,-460.0,0.00019452,2]
[370190587,1751911841278,-460.0,0.00019452,2]
[370190590,1751911841288,-460.0,0.00019452,2]
[370190594,1751911841297,-460.0,0.00019452,2]
[370190597,1751911841306,-460.0,0.00019452,2]
[370190600,1751911841315,-460.0,0.00019452,2]
[370190603,1751911841324,-460.0,0.00019452,2]
[370190606,1751911841333,-979.24,0.00019452,2]
[370190609,1751911841342,-1937.98,0.00019452,2]
[370190612,1751911841351,-460.0,0.00019452,2]
[370190615,1751911841361,-460.0,0.00019452,2]
[370190618,1751911841370,-1279.33,0.00019452,2]
[370190621,1751911841381,-460.0,0.00019452,2]
[370190624,1751911841390,-460.0,0.00019452,2]
[370190628,1751911841399,-485.3,0.00019452,2]
[370190630,1751911841409,-460.0,0.00019452,2]
[370190633,1751911841420,-460.0,0.00019452,2]
[370190636,1751911841429,-460.0,0.00019452,2]
[370190639,1751911841438,-460.0,0.00019452,2]
[370190642,1751911841448,-738.21,0.00019452,2]
[370190645,1751911841458,-460.0,0.00019452,2]
[370190647,1751911841468,-460.0,0.00019452,2]
[370190649,1751911841477,-3068.15,0.00019452,2]
[370190651,1751911841486,-460.0,0.00019452,2]
[370190653,1751911841496,-460.0,0.00019452,2]
[370190655,1751911841506,-463.59,0.00019452,2]
[370190657,1751911841515,-174.64083052,0.00019452,2]
[370190659,1751911841524,-460.0,0.00019452,2]
[370190661,1751911841534,-460.0,0.00019452,2]
[370190663,1751911841542,-460.0,0.00019452,2]
[370190664,1751911841556,-460.0,0.00019452,2]
[370190666,1751911841568,-460.0,0.00019452,2]
[370190669,1751911841578,-460.0,0.00019452,2]
[370190671,1751911841588,-460.0,0.00019452,2]
[370190673,1751911841597,-460.0,0.00019452,2]
[370190675,1751911841606,-460.0,0.00019452,2]
[370190677,1751911841615,-787.89,0.00019452,2]
[370190679,1751911841625,-460.0,0.00019452,2]
[370190681,1751911841635,-727.17,0.00019452,2]
[370190683,1751911841644,-460.0,0.00019452,2]
[370190685,1751911841655,-460.0,0.00019452,2]
[370190687,1751911841665,-460.0,0.00019452,2]